[Event "*** SCC Grand Prix: Titled Tuesday Blitz"]
[Site "Chess.com"]
[Date "2020.09.08"]
[Round "7"]
[White "Legendinunknown"]
[Black "aNaartjieZA"]
[Result "0-1"]
[WhiteElo "2607"]
[BlackElo "2487"]
[TimeControl "180+1"]
[EndTime "11:19:19 PDT"]
[Termination "aNaartjieZA won by resignation"]

1. d4 {[%clk 0:02:57.5]} 1... Nf6 {[%clk 0:02:59.7]} 2. c4 {[%clk 0:02:55.3]}
2... c5 {[%clk 0:02:59.6]} 3. d5 {[%clk 0:02:54.5]} 3... e5 {[%clk 0:02:59.9]}
4. Nc3 {[%clk 0:02:54.3]} 4... d6 {[%clk 0:03:00.1]} 5. e4 {[%clk 0:02:52.7]}
5... Nbd7 {[%clk 0:03:00.2]} 6. Bd3 {[%clk 0:02:51.9]} 6... Be7 {[%clk
0:03:00.3]} 7. Nge2 {[%clk 0:02:52.2]} 7... h5 {[%clk 0:03:00.5]} 8. f3 {[%clk
0:02:49.6]} 8... h4 {[%clk 0:03:00.4]} 9. Be3 {[%clk 0:02:47.4]} 9... Nh5 {[%clk
0:02:56.9]} 10. Qd2 {[%clk 0:02:45.7]} 10... a6 {[%clk 0:02:56.4]} 11. g3 {[%clk
0:02:19.9]} 11... g5 {[%clk 0:02:55.4]} 12. O-O-O {[%clk 0:02:09.6]} 12... Rb8
{[%clk 0:02:54.1]} 13. Rdg1 {[%clk 0:01:57]} 13... h3 {[%clk 0:02:51.3]} 14. f4
{[%clk 0:01:56]} 14... g4 {[%clk 0:02:51.2]} 15. a4 {[%clk 0:01:45.9]} 15... Bf6
{[%clk 0:02:49.8]} 16. f5 {[%clk 0:01:43.3]} 16... Rg8 {[%clk 0:02:43.1]} 17.
Kc2 {[%clk 0:01:40.8]} 17... Bg5 {[%clk 0:02:41.9]} 18. Rb1 {[%clk 0:01:38.8]}
18... Bxe3 {[%clk 0:02:36.1]} 19. Qxe3 {[%clk 0:01:39.7]} 19... a5 {[%clk
0:02:36.2]} 20. Nb5 {[%clk 0:01:38.4]} 20... Qf6 {[%clk 0:02:36.1]} 21. Rhf1
{[%clk 0:01:29.1]} 21... Ke7 {[%clk 0:02:35.3]} 22. Nec3 {[%clk 0:01:26.6]}
22... b6 {[%clk 0:02:30.8]} 23. Na7 {[%clk 0:01:24]} 23... Ra8 {[%clk
0:02:22.7]} 24. Nc6+ {[%clk 0:01:23.8]} 24... Ke8 {[%clk 0:02:22.3]} 25. Nb5
{[%clk 0:01:23.5]} 25... Bb7 {[%clk 0:02:20.6]} 26. Nc7+ {[%clk 0:01:16.3]}
26... Kf8 {[%clk 0:02:20.5]} 27. Ne6+ {[%clk 0:01:14]} 27... Ke8 {[%clk
0:02:18.3]} 28. Be2 {[%clk 0:01:00.5]} 28... Rc8 {[%clk 0:02:16.6]} 29. Qd2
{[%clk 0:00:46]} 29... Bxc6 {[%clk 0:02:02.6]} 30. dxc6 {[%clk 0:00:45.9]} 30...
Rxc6 {[%clk 0:02:02.8]} 31. Qd5 {[%clk 0:00:45.3]} 31... Nb8 {[%clk 0:02:01.9]}
32. Rbd1 {[%clk 0:00:34]} 32... Ke7 {[%clk 0:01:59.5]} 33. Qd2 {[%clk
0:00:13.9]} 33... fxe6 {[%clk 0:01:51.8]} 34. fxe6 {[%clk 0:00:14.8]} 34... Qxe6
{[%clk 0:01:51.9]} 35. Rf5 {[%clk 0:00:15.4]} 35... Nf6 {[%clk 0:01:50.2]} 36.
Rdf1 {[%clk 0:00:15.5]} 36... Nbd7 {[%clk 0:01:47.4]} 37. Qh6 {[%clk 0:00:15.5]}
37... Rf8 {[%clk 0:01:42.3]} 38. Bd3 {[%clk 0:00:15.4]} 38... Rcc8 {[%clk
0:01:37.9]} 39. Qg7+ {[%clk 0:00:15.3]} 39... Rf7 {[%clk 0:01:37.8]} 40. Qh6
{[%clk 0:00:15.4]} 40... Rcf8 {[%clk 0:01:37.5]} 41. Qg5 {[%clk 0:00:15]} 41...
Ke8 {[%clk 0:01:35.2]} 42. Qg6 {[%clk 0:00:15.1]} 42... Rg8 {[%clk 0:01:30.7]}
43. Qh6 {[%clk 0:00:15.4]} 43... Rh7 {[%clk 0:01:26.3]} 44. Qe3 {[%clk
0:00:14.4]} 44... Rg6 {[%clk 0:01:24.2]} 45. Qf2 {[%clk 0:00:13.9]} 45... Ke7
{[%clk 0:01:23.5]} 46. Qe3 {[%clk 0:00:13.6]} 46... Nb8 {[%clk 0:01:23.2]} 47.
Qf2 {[%clk 0:00:13.5]} 47... Nc6 {[%clk 0:01:23]} 48. Kc3 {[%clk 0:00:11.2]}
48... Nd4 {[%clk 0:01:22.1]} 49. Qe3 {[%clk 0:00:11.5]} 49... Rgh6 {[%clk
0:01:20.4]} 50. Rg5 {[%clk 0:00:11.4]} 50... Qd7 {[%clk 0:01:18.7]} 51. b3
{[%clk 0:00:09.8]} 51... Qe8 {[%clk 0:01:18]} 52. Qf2 {[%clk 0:00:09.7]} 52...
Rg6 {[%clk 0:01:17.2]} 53. Qe3 {[%clk 0:00:08.4]} 53... Qg8 {[%clk 0:01:14]} 54.
Rgf5 {[%clk 0:00:03.6]} 54... Nxf5 {[%clk 0:01:12.1]} 55. exf5 {[%clk
0:00:04.5]} 55... Rgg7 {[%clk 0:01:11.9]} 56. Be4 {[%clk 0:00:05.4]} 56... Qc8
{[%clk 0:01:10]} 57. Bd5 {[%clk 0:00:05.5]} 57... Nxd5+ {[%clk 0:01:09]} 58.
cxd5 {[%clk 0:00:05.8]} 58... Kf6 {[%clk 0:01:09.2]} 59. Qe4 {[%clk 0:00:05.2]}
59... Rh5 {[%clk 0:01:08.9]} 60. Qc4 {[%clk 0:00:03.4]} 60... Rxf5 {[%clk
0:01:08.2]} 61. Rxf5+ {[%clk 0:00:03]} 61... Qxf5 {[%clk 0:01:07.9]} 62. Qb5
{[%clk 0:00:03.9]} 62... Qf3+ {[%clk 0:01:07.6]} 63. Kb2 {[%clk 0:00:04.2]}
63... Qxd5 {[%clk 0:01:07]} 64. Ka3 {[%clk 0:00:05.1]} 64... Kf5 {[%clk
0:01:05.2]} 65. Qxb6 {[%clk 0:00:03.6]} 65... Rb7 {[%clk 0:01:03.7]} 0-1

[Event "*** SCC Grand Prix: Titled Tuesday Blitz"]
[Site "Chess.com"]
[Date "2020.09.08"]
[Round "7"]
[White "annacramling"]
[Black "ClydeHillKid"]
[Result "1-0"]
[WhiteElo "2154"]
[BlackElo "2332"]
[TimeControl "180+1"]
[EndTime "11:19:19 PDT"]
[Termination "annacramling won on time"]

1. d4 {[%clk 0:03:00.9]} 1... d5 {[%clk 0:02:59.9]} 2. c4 {[%clk 0:03:00.4]}
2... e6 {[%clk 0:02:58.8]} 3. Nc3 {[%clk 0:02:59.8]} 3... Nf6 {[%clk 0:02:58.2]}
4. cxd5 {[%clk 0:03:00.2]} 4... exd5 {[%clk 0:02:58.3]} 5. Bg5 {[%clk
0:03:00.7]} 5... c6 {[%clk 0:02:58.5]} 6. e3 {[%clk 0:03:00.5]} 6... Bd6 {[%clk
0:02:59]} 7. Bd3 {[%clk 0:03:00.3]} 7... O-O {[%clk 0:02:59.6]} 8. Nf3 {[%clk
0:02:59.1]} 8... Re8 {[%clk 0:02:56.5]} 9. O-O {[%clk 0:02:58.4]} 9... Nbd7
{[%clk 0:02:55.8]} 10. Qc2 {[%clk 0:02:58.1]} 10... Nf8 {[%clk 0:02:55.6]} 11.
Rab1 {[%clk 0:02:56.1]} 11... Ng6 {[%clk 0:02:55.6]} 12. b4 {[%clk 0:02:55.5]}
12... h6 {[%clk 0:02:54.4]} 13. Bxf6 {[%clk 0:02:30.4]} 13... Qxf6 {[%clk
0:02:55.3]} 14. b5 {[%clk 0:02:30.4]} 14... Bg4 {[%clk 0:02:53.2]} 15. Bxg6
{[%clk 0:02:12.6]} 15... Bxf3 {[%clk 0:02:30.2]} 16. Bh7+ {[%clk 0:02:12]} 16...
Kh8 {[%clk 0:02:27.3]} 17. gxf3 {[%clk 0:02:08.4]} 17... g6 {[%clk 0:02:10.3]}
18. bxc6 {[%clk 0:01:24.3]} 18... bxc6 {[%clk 0:01:59.4]} 19. f4 {[%clk
0:00:45.9]} 19... Kxh7 {[%clk 0:01:55.3]} 20. Ne2 {[%clk 0:00:44.9]} 20... Rac8
{[%clk 0:01:31.8]} 21. Rb7 {[%clk 0:00:43]} 21... Re7 {[%clk 0:01:30.5]} 22.
Rfb1 {[%clk 0:00:41]} 22... Rcc7 {[%clk 0:01:30.5]} 23. Rxc7 {[%clk 0:00:38.3]}
23... Rxc7 {[%clk 0:01:31.4]} 24. Ng3 {[%clk 0:00:32.1]} 24... h5 {[%clk
0:01:27.7]} 25. Qe2 {[%clk 0:00:16.9]} 25... c5 {[%clk 0:01:15.5]} 26. dxc5
{[%clk 0:00:16.2]} 26... Bxc5 {[%clk 0:01:14.5]} 27. Rd1 {[%clk 0:00:15.5]}
27... Rd7 {[%clk 0:01:10]} 28. Ne4 {[%clk 0:00:12.3]} 28... Qe7 {[%clk
0:01:04.7]} 29. Nxc5 {[%clk 0:00:06.7]} 29... Qxc5 {[%clk 0:01:05.6]} 30. Qd3
{[%clk 0:00:05.4]} 30... d4 {[%clk 0:00:56.3]} 31. exd4 {[%clk 0:00:04.7]} 31...
Qd5 {[%clk 0:00:51.8]} 32. h3 {[%clk 0:00:03.4]} 32... Rd6 {[%clk 0:00:35.5]}
33. a4 {[%clk 0:00:03.7]} 33... a5 {[%clk 0:00:34.2]} 34. f5 {[%clk 0:00:03.4]}
34... Rf6 {[%clk 0:00:32.7]} 35. fxg6+ {[%clk 0:00:02.9]} 35... Rxg6+ {[%clk
0:00:33]} 36. Kf1 {[%clk 0:00:02.3]} 36... Qg2+ {[%clk 0:00:32.7]} 37. Ke2
{[%clk 0:00:02.5]} 37... Kg7 {[%clk 0:00:28.1]} 38. d5 {[%clk 0:00:02]} 38...
Qg5 {[%clk 0:00:20.4]} 39. d6 {[%clk 0:00:02.1]} 39... Re6+ {[%clk 0:00:20.5]}
40. Kf1 {[%clk 0:00:01.1]} 40... Rg6 {[%clk 0:00:09.9]} 41. Qd4+ {[%clk
0:00:01.7]} 41... Kh7 {[%clk 0:00:09.7]} 42. d7 {[%clk 0:00:01.9]} 42... Qg2+
{[%clk 0:00:09.7]} 43. Ke2 {[%clk 0:00:02.6]} 43... Re6+ {[%clk 0:00:10.3]} 44.
Kd2 {[%clk 0:00:02.4]} 44... Qg5+ {[%clk 0:00:06.6]} 45. Kc2 {[%clk 0:00:02.3]}
45... Rc6+ {[%clk 0:00:06]} 46. Kb2 {[%clk 0:00:02.8]} 46... Qd8 {[%clk
0:00:04]} 47. Qd3+ {[%clk 0:00:03.3]} 47... Rg6 {[%clk 0:00:01.6]} 48. Rd2
{[%clk 0:00:03.1]} 48... Qb8+ {[%clk 0:00:01.9]} 49. Ka2 {[%clk 0:00:03.6]} 1-0

[Event "*** SCC Grand Prix: Titled Tuesday Blitz"]
[Site "Chess.com"]
[Date "2020.09.08"]
[Round "7"]
[White "DinaBelenkaya"]
[Black "picturesquecheck"]
[Result "1-0"]
[WhiteElo "2282"]
[BlackElo "2146"]
[TimeControl "180+1"]
[EndTime "11:19:20 PDT"]
[Termination "DinaBelenkaya won by checkmate"]

1. e4 {[%clk 0:03:00.9]} 1... c5 {[%clk 0:02:59.7]} 2. Nc3 {[%clk 0:02:59.4]}
2... Nc6 {[%clk 0:02:58.6]} 3. Nf3 {[%clk 0:02:57.1]} 3... d6 {[%clk 0:02:51.7]}
4. g3 {[%clk 0:02:54.5]} 4... g6 {[%clk 0:02:50.7]} 5. Bg2 {[%clk 0:02:53.3]}
5... Bg7 {[%clk 0:02:51.1]} 6. d3 {[%clk 0:02:53.4]} 6... e6 {[%clk 0:02:51.3]}
7. Bg5 {[%clk 0:02:53.4]} 7... Nge7 {[%clk 0:02:51.2]} 8. Qc1 {[%clk 0:02:53]}
8... h6 {[%clk 0:02:50.8]} 9. Be3 {[%clk 0:02:52.3]} 9... a6 {[%clk 0:02:50.7]}
10. O-O {[%clk 0:02:52.2]} 10... b5 {[%clk 0:02:50.3]} 11. Ne2 {[%clk
0:02:50.6]} 11... h5 {[%clk 0:02:48]} 12. c3 {[%clk 0:02:49.8]} 12... Bb7 {[%clk
0:02:46.3]} 13. d4 {[%clk 0:02:46.7]} 13... cxd4 {[%clk 0:02:44.9]} 14. cxd4
{[%clk 0:02:47.6]} 14... Rc8 {[%clk 0:02:44.5]} 15. Qd2 {[%clk 0:02:47.1]} 15...
d5 {[%clk 0:02:43]} 16. e5 {[%clk 0:02:46]} 16... O-O {[%clk 0:02:34.6]} 17. Bg5
{[%clk 0:02:42.6]} 17... Qd7 {[%clk 0:02:31.8]} 18. Bf6 {[%clk 0:02:37.1]} 18...
b4 {[%clk 0:02:20.8]} 19. Nh4 {[%clk 0:02:27.5]} 19... a5 {[%clk 0:02:19.4]} 20.
Nf4 {[%clk 0:02:07.9]} 20... Ba6 {[%clk 0:02:17]} 21. Nxh5 {[%clk 0:01:56.8]}
21... gxh5 {[%clk 0:02:13.3]} 22. Qg5 {[%clk 0:01:54.7]} 22... Ng6 {[%clk
0:02:12.4]} 23. Rfd1 {[%clk 0:01:23.3]} 23... Nce7 {[%clk 0:02:12.2]} 24. Qxh5
{[%clk 0:01:18.3]} 24... Rc2 {[%clk 0:01:53]} 25. Bh3 {[%clk 0:01:08.1]} 25...
Be2 {[%clk 0:01:41.5]} 26. Nf3 {[%clk 0:00:45.1]} 26... Rxb2 {[%clk 0:01:28.3]}
27. Bg4 {[%clk 0:00:36.3]} 27... Bxf3 {[%clk 0:01:25]} 28. Bxf3 {[%clk
0:00:37.2]} 28... Nf5 {[%clk 0:01:20.5]} 29. h4 {[%clk 0:00:32.6]} 29... Rc8
{[%clk 0:01:12.7]} 30. Qg5 {[%clk 0:00:32.3]} 30... Bh6 {[%clk 0:01:03.1]} 31.
Qg4 {[%clk 0:00:29.8]} 31... Kh7 {[%clk 0:00:40.4]} 32. h5 {[%clk 0:00:30]}
32... Nge7 {[%clk 0:00:39.8]} 33. Qh3 {[%clk 0:00:22.3]} 33... Rg8 {[%clk
0:00:39.3]} 34. g4 {[%clk 0:00:21.3]} 34... a4 {[%clk 0:00:36.3]} 35. Rf1 {[%clk
0:00:09.9]} 35... Nxd4 {[%clk 0:00:34]} 36. Kh1 {[%clk 0:00:07.9]} 36... Nxf3
{[%clk 0:00:31.1]} 37. Qxf3 {[%clk 0:00:08.8]} 37... d4 {[%clk 0:00:31.4]} 38.
Qe4+ {[%clk 0:00:08.7]} 38... Nf5 {[%clk 0:00:23.6]} 39. gxf5 {[%clk 0:00:07.7]}
39... exf5 {[%clk 0:00:24.5]} 40. Qf3 {[%clk 0:00:07.7]} 40... Rg4 {[%clk
0:00:21.7]} 41. Rg1 {[%clk 0:00:06]} 41... b3 {[%clk 0:00:16.8]} 42. Rxg4 {[%clk
0:00:06.5]} 42... fxg4 {[%clk 0:00:13.9]} 43. Qe4+ {[%clk 0:00:06.9]} 43... Kg8
{[%clk 0:00:14.1]} 44. Rg1 {[%clk 0:00:07.8]} 44... Rxf2 {[%clk 0:00:12.9]} 45.
Rxg4+ {[%clk 0:00:07.8]} 45... Kf8 {[%clk 0:00:11.8]} 46. Rg1 {[%clk 0:00:03.8]}
46... Qf5 {[%clk 0:00:11.6]} 47. Qa8+ {[%clk 0:00:03.6]} 47... Qc8 {[%clk
0:00:09.1]} 48. Qxc8# {[%clk 0:00:04.2]} 1-0

[Event "*** SCC Grand Prix: Titled Tuesday Blitz"]
[Site "Chess.com"]
[Date "2020.09.08"]
[Round "7"]
[White "Justinz"]
[Black "SeedToTree"]
[Result "1-0"]
[WhiteElo "2414"]
[BlackElo "2539"]
[TimeControl "180+1"]
[EndTime "11:19:21 PDT"]
[Termination "Justinz won on time"]

1. e4 {[%clk 0:02:54.2]} 1... a6 {[%clk 0:02:52.8]} 2. d4 {[%clk 0:02:53.2]}
2... e6 {[%clk 0:02:52.8]} 3. Nf3 {[%clk 0:02:52.5]} 3... d5 {[%clk 0:02:52.9]}
4. Nc3 {[%clk 0:02:51.7]} 4... Nf6 {[%clk 0:02:52.4]} 5. Bg5 {[%clk 0:02:50.3]}
5... Be7 {[%clk 0:02:52.3]} 6. Bd3 {[%clk 0:02:45.5]} 6... b5 {[%clk 0:02:48.6]}
7. exd5 {[%clk 0:02:42.4]} 7... b4 {[%clk 0:02:43.9]} 8. Ne2 {[%clk 0:02:33.1]}
8... Nxd5 {[%clk 0:02:40.7]} 9. Bxe7 {[%clk 0:02:32.4]} 9... Qxe7 {[%clk
0:02:41]} 10. O-O {[%clk 0:02:32.8]} 10... Bb7 {[%clk 0:02:39.8]} 11. Ng3 {[%clk
0:02:09.2]} 11... Nd7 {[%clk 0:02:28.2]} 12. a3 {[%clk 0:02:04.7]} 12... a5
{[%clk 0:02:24.9]} 13. Re1 {[%clk 0:01:55.5]} 13... O-O {[%clk 0:02:16.4]} 14.
Ne4 {[%clk 0:01:31.5]} 14... Nf4 {[%clk 0:02:12.5]} 15. Bf1 {[%clk 0:01:29]}
15... c5 {[%clk 0:02:04.6]} 16. Qd2 {[%clk 0:01:24.9]} 16... Ng6 {[%clk
0:01:48]} 17. axb4 {[%clk 0:01:22.3]} 17... cxb4 {[%clk 0:01:40.9]} 18. c4
{[%clk 0:01:16.6]} 18... bxc3 {[%clk 0:01:40.1]} 19. bxc3 {[%clk 0:01:15.2]}
19... Rfd8 {[%clk 0:01:36]} 20. Rab1 {[%clk 0:01:12.5]} 20... Bc6 {[%clk
0:01:11.6]} 21. Bb5 {[%clk 0:00:56.2]} 21... Rdc8 {[%clk 0:00:53.3]} 22. Bxc6
{[%clk 0:00:53.9]} 22... Rxc6 {[%clk 0:00:53.3]} 23. Rb7 {[%clk 0:00:54.2]}
23... Rb6 {[%clk 0:00:41.2]} 24. Rb1 {[%clk 0:00:51.9]} 24... Rxb1+ {[%clk
0:00:41.3]} 25. Rxb1 {[%clk 0:00:51.6]} 25... Nf6 {[%clk 0:00:35.3]} 26. Nc5
{[%clk 0:00:51.2]} 26... Qd6 {[%clk 0:00:27.8]} 27. h3 {[%clk 0:00:40.7]} 27...
h6 {[%clk 0:00:27.6]} 28. Rb7 {[%clk 0:00:36.7]} 28... a4 {[%clk 0:00:27.5]} 29.
Qb2 {[%clk 0:00:35]} 29... a3 {[%clk 0:00:26.9]} 30. Qa2 {[%clk 0:00:35.1]}
30... Nd5 {[%clk 0:00:26.4]} 31. Rb3 {[%clk 0:00:34.1]} 31... Ngf4 {[%clk
0:00:24.4]} 32. Rxa3 {[%clk 0:00:24.7]} 32... Rxa3 {[%clk 0:00:23.2]} 33. Qxa3
{[%clk 0:00:25.6]} 33... Kh7 {[%clk 0:00:19.2]} 34. Qb2 {[%clk 0:00:22.9]} 34...
Qc6 {[%clk 0:00:17.9]} 35. Qc2+ {[%clk 0:00:22]} 35... g6 {[%clk 0:00:17.1]} 36.
Ne5 {[%clk 0:00:20.7]} 36... Qc7 {[%clk 0:00:17.4]} 37. c4 {[%clk 0:00:17.8]}
37... Nb4 {[%clk 0:00:16.7]} 38. Qd2 {[%clk 0:00:17.5]} 38... f6 {[%clk
0:00:10.1]} 39. Nf3 {[%clk 0:00:13.3]} 39... Nc6 {[%clk 0:00:08.8]} 40. g3
{[%clk 0:00:11.4]} 40... Nxh3+ {[%clk 0:00:08.5]} 41. Kg2 {[%clk 0:00:11.7]}
41... Ng5 {[%clk 0:00:07.2]} 42. Nxg5+ {[%clk 0:00:11.9]} 42... hxg5 {[%clk
0:00:08.1]} 43. Nxe6 {[%clk 0:00:12.3]} 43... Qd6 {[%clk 0:00:08.7]} 44. d5
{[%clk 0:00:12.7]} 44... Ne5 {[%clk 0:00:08.8]} 45. c5 {[%clk 0:00:12.6]} 45...
Qd7 {[%clk 0:00:08]} 46. Qd4 {[%clk 0:00:12.3]} 46... Qb7 {[%clk 0:00:05.1]} 47.
Nxg5+ {[%clk 0:00:11.8]} 47... Kh6 {[%clk 0:00:03.6]} 48. Ne4 {[%clk 0:00:11]}
48... Qb3 {[%clk 0:00:03.5]} 49. Qe3+ {[%clk 0:00:08.3]} 49... Qxe3 {[%clk
0:00:03.7]} 50. fxe3 {[%clk 0:00:09.2]} 50... f5 {[%clk 0:00:04.3]} 51. c6
{[%clk 0:00:09]} 1-0

[Event "*** SCC Grand Prix: Titled Tuesday Blitz"]
[Site "Chess.com"]
[Date "2020.09.08"]
[Round "7"]
[White "keepitcool9499"]
[Black "willc-h99"]
[Result "1/2-1/2"]
[WhiteElo "2648"]
[BlackElo "2441"]
[TimeControl "180+1"]
[EndTime "11:19:22 PDT"]
[Termination "Game drawn by repetition"]

1. d4 {[%clk 0:03:00.9]} 1... Nf6 {[%clk 0:02:59.5]} 2. c4 {[%clk 0:02:59.3]}
2... e6 {[%clk 0:02:59.5]} 3. Nc3 {[%clk 0:02:59.8]} 3... Bb4 {[%clk 0:02:59.6]}
4. Bd2 {[%clk 0:03:00.2]} 4... O-O {[%clk 0:02:58.4]} 5. Nf3 {[%clk 0:03:00.1]}
5... d5 {[%clk 0:02:57.9]} 6. e3 {[%clk 0:03:00.7]} 6... Nbd7 {[%clk 0:02:50.3]}
7. Bd3 {[%clk 0:03:00.4]} 7... b6 {[%clk 0:02:49.5]} 8. O-O {[%clk 0:02:59.5]}
8... Bb7 {[%clk 0:02:49.8]} 9. Qc2 {[%clk 0:02:58.8]} 9... dxc4 {[%clk
0:02:42.7]} 10. Bxc4 {[%clk 0:02:58.5]} 10... Be7 {[%clk 0:02:38.1]} 11. Be2
{[%clk 0:02:56.5]} 11... c5 {[%clk 0:02:37.1]} 12. Rac1 {[%clk 0:02:51.4]} 12...
Rc8 {[%clk 0:02:36.1]} 13. Qa4 {[%clk 0:02:49.6]} 13... Qc7 {[%clk 0:02:29.5]}
14. Bb5 {[%clk 0:02:44.8]} 14... Bxf3 {[%clk 0:02:22]} 15. gxf3 {[%clk
0:02:45.7]} 15... cxd4 {[%clk 0:02:22.5]} 16. Qxd4 {[%clk 0:02:44.4]} 16... Qb7
{[%clk 0:02:15.2]} 17. Ne4 {[%clk 0:02:40.3]} 17... Nxe4 {[%clk 0:02:12]} 18.
Qxe4 {[%clk 0:02:41.2]} 18... Qxe4 {[%clk 0:02:03.8]} 19. fxe4 {[%clk
0:02:42.1]} 19... Nc5 {[%clk 0:01:59.8]} 20. f3 {[%clk 0:02:36]} 20... a6 {[%clk
0:01:55.9]} 21. Be2 {[%clk 0:02:34.9]} 21... Rfd8 {[%clk 0:01:54.5]} 22. Rfd1
{[%clk 0:02:34.9]} 22... b5 {[%clk 0:01:31.9]} 23. Ba5 {[%clk 0:02:27.9]} 23...
Rxd1+ {[%clk 0:01:27.9]} 24. Rxd1 {[%clk 0:02:28.8]} 24... g6 {[%clk 0:01:13.5]}
25. Bc3 {[%clk 0:02:25.8]} 25... Na4 {[%clk 0:01:09.1]} 26. Bd4 {[%clk
0:02:23.2]} 26... Rc2 {[%clk 0:01:06.7]} 27. Bd3 {[%clk 0:02:22.1]} 27... Rc8
{[%clk 0:01:03.5]} 28. b3 {[%clk 0:02:21.6]} 28... Nc5 {[%clk 0:01:02.8]} 29.
Rc1 {[%clk 0:02:18.2]} 29... Rd8 {[%clk 0:00:52.6]} 30. Be2 {[%clk 0:02:08.8]}
30... Nd7 {[%clk 0:00:21.4]} 31. Rc7 {[%clk 0:02:04.9]} 31... e5 {[%clk
0:00:21.9]} 32. Bc3 {[%clk 0:02:00.8]} 32... Bd6 {[%clk 0:00:22.5]} 33. Ra7
{[%clk 0:01:59.8]} 33... Bc5 {[%clk 0:00:22.8]} 34. Rxa6 {[%clk 0:01:57.5]}
34... Bxe3+ {[%clk 0:00:23.2]} 35. Kg2 {[%clk 0:01:56.9]} 35... Nc5 {[%clk
0:00:22.9]} 36. Rc6 {[%clk 0:01:48.6]} 36... Ne6 {[%clk 0:00:22.9]} 37. Bxe5
{[%clk 0:01:43]} 37... h5 {[%clk 0:00:21.6]} 38. Bxb5 {[%clk 0:01:41]} 38...
Rd2+ {[%clk 0:00:20.6]} 39. Kf1 {[%clk 0:01:33.8]} 39... g5 {[%clk 0:00:20.9]}
40. Bc4 {[%clk 0:01:30.2]} 40... Rxa2 {[%clk 0:00:19.1]} 41. Bxe6 {[%clk
0:01:29.7]} 41... fxe6 {[%clk 0:00:19.6]} 42. Rxe6 {[%clk 0:01:30.1]} 42... Rf2+
{[%clk 0:00:17.6]} 43. Ke1 {[%clk 0:01:30.1]} 43... Rxf3 {[%clk 0:00:18]} 44.
Ke2 {[%clk 0:01:27]} 44... Rh3 {[%clk 0:00:17.8]} 45. Bg3 {[%clk 0:01:25.9]}
45... h4 {[%clk 0:00:17.1]} 46. Be5 {[%clk 0:01:22.9]} 46... Bf4 {[%clk
0:00:14.9]} 47. Bxf4 {[%clk 0:01:22.1]} 47... gxf4 {[%clk 0:00:15.8]} 48. b4
{[%clk 0:01:10.3]} 48... Rxh2+ {[%clk 0:00:15.2]} 49. Kf3 {[%clk 0:01:10.1]}
49... Rb2 {[%clk 0:00:15.8]} 50. Rb6 {[%clk 0:01:09.3]} 50... h3 {[%clk
0:00:14]} 51. Kxf4 {[%clk 0:01:05.8]} 51... h2 {[%clk 0:00:14.6]} 52. Rh6 {[%clk
0:01:05.7]} 52... Rxb4 {[%clk 0:00:14.8]} 53. Rxh2 {[%clk 0:01:06.2]} 53... Rb6
{[%clk 0:00:14.3]} 54. Rh5 {[%clk 0:01:05.8]} 54... Kf8 {[%clk 0:00:14.9]} 55.
Rf5+ {[%clk 0:01:06.1]} 55... Ke8 {[%clk 0:00:15.2]} 56. Re5+ {[%clk 0:01:06.4]}
56... Kf7 {[%clk 0:00:15.4]} 57. Rc5 {[%clk 0:01:05.7]} 57... Ke7 {[%clk
0:00:15.6]} 58. Ra5 {[%clk 0:01:05.7]} 58... Kf7 {[%clk 0:00:15.3]} 59. Kf5
{[%clk 0:01:06]} 59... Ke7 {[%clk 0:00:14.6]} 60. Ra7+ {[%clk 0:01:06.1]} 60...
Ke8 {[%clk 0:00:14.9]} 61. e5 {[%clk 0:01:06.7]} 61... Rc6 {[%clk 0:00:14.5]}
62. e6 {[%clk 0:01:03.5]} 62... Rc1 {[%clk 0:00:14.5]} 63. Ra8+ {[%clk
0:01:02.7]} 63... Ke7 {[%clk 0:00:13.7]} 64. Ra7+ {[%clk 0:01:02.8]} 64... Ke8
{[%clk 0:00:13.8]} 65. Ra5 {[%clk 0:01:02.7]} 65... Rf1+ {[%clk 0:00:13.3]} 66.
Ke5 {[%clk 0:01:03.1]} 66... Re1+ {[%clk 0:00:13.7]} 67. Kd6 {[%clk 0:01:03.7]}
67... Rd1+ {[%clk 0:00:14.2]} 68. Rd5 {[%clk 0:01:04.4]} 68... Rxd5+ {[%clk
0:00:14.4]} 69. Kxd5 {[%clk 0:01:05.3]} 69... Ke7 {[%clk 0:00:14.6]} 70. Ke5
{[%clk 0:01:06.2]} 70... Ke8 {[%clk 0:00:15.3]} 71. Kd6 {[%clk 0:01:06.7]} 71...
Kd8 {[%clk 0:00:15.8]} 72. Kd5 {[%clk 0:01:06.7]} 72... Ke7 {[%clk 0:00:15.9]}
73. Ke5 {[%clk 0:01:07.3]} 73... Ke8 {[%clk 0:00:16.5]} 74. Ke4 {[%clk
0:01:08.2]} 74... Ke7 {[%clk 0:00:16.7]} 75. Kf5 {[%clk 0:01:09.1]} 75... Ke8
{[%clk 0:00:17.3]} 76. Kf6 {[%clk 0:01:10]} 76... Kf8 {[%clk 0:00:17.9]} 77. Ke5
{[%clk 0:01:09.3]} 77... Ke7 {[%clk 0:00:18.5]} 78. Kd5 {[%clk 0:01:09.1]} 78...
Ke8 {[%clk 0:00:19.1]} 79. Kc5 {[%clk 0:01:09.6]} 79... Ke7 {[%clk 0:00:19.3]}
80. Kd5 {[%clk 0:01:10.1]} 80... Ke8 {[%clk 0:00:19.8]} 81. Kd6 {[%clk 0:01:11]}
81... Kd8 {[%clk 0:00:20]} 82. Ke5 {[%clk 0:01:09.6]} 82... Ke7 {[%clk
0:00:20.9]} 83. Kf5 {[%clk 0:01:09.5]} 83... Ke8 {[%clk 0:00:21.1]} 84. Kf6
{[%clk 0:01:10.4]} 84... Kf8 {[%clk 0:00:19.4]} 85. Kg6 {[%clk 0:01:10]} 85...
Ke7 {[%clk 0:00:19.4]} 86. Kf5 {[%clk 0:01:10.9]} 1/2-1/2